fUST/lending_fUST_20250618
["ID","MTS","AMOUNT","RATE_DAILY","PERIOD"]
[366386271,1750225844214,-500.91986045,0.00023373,2]
[366386272,1750225844223,-502.18314876,0.00023373,2]
[366386273,1750225844232,-500.0,0.00023373,2]
[366386274,1750225844242,-501.15956956,0.00023373,2]
[366386275,1750225844251,-500.0,0.00023373,2]
[366386276,1750225844260,-158.50228441,0.00023373,2]
[366386277,1750225844270,-501.94940115,0.00023373,2]
[366386278,1750225844279,-505.22313109,0.00023373,2]
[366386279,1750225844289,-500.0,0.00023373,2]
[366386280,1750225844298,-677.0,0.00023384,7]
[366386281,1750225844307,-1655.68,0.00023389,2]
[366386282,1750225844316,-86979.28,0.000234,2]
[366386283,1750225844326,-151.0,0.000234,7]
[366386284,1750225844335,-170.243536,0.000234,7]
[366386285,1750225844344,-154.971557,0.000234,7]
[366386286,1750225844354,-175.0,0.000234,2]
[366386287,1750225844363,-175.0,0.000234,2]
[366386288,1750225844373,-473.056644,0.000234,2]
[366386289,1750225844383,-162.793971,0.000234,7]
[366386290,1750225844391,-153.204073,0.000234,7]
[366386291,1750225844401,-151.0,0.000234,7]
[366386292,1750225844410,-299.565967,0.000234,7]
[366386293,1750225844419,-151.0,0.000234,7]
[366386294,1750225844428,-151.0,0.000234,7]
[366386295,1750225844437,-151.0,0.000234,7]
[366386296,1750225844447,-151.0,0.000234,7]
[366386297,1750225844456,-151.0,0.000234,7]
[366386298,1750225844465,-151.0,0.000234,7]
[366386299,1750225844474,-151.0,0.000234,7]
[366386300,1750225844483,-151.0,0.000234,7]
[366386301,1750225844493,-151.0,0.000234,7]
[366386302,1750225844502,-151.0,0.000234,7]
[366386303,1750225844511,-151.0,0.000234,7]
[366386304,1750225844521,-151.0,0.000234,7]
[366386305,1750225844530,-151.0,0.000234,7]
[366386306,1750225844539,-151.0,0.000234,7]
[366386307,1750225844548,-250.0,0.00023445,2]
[366386308,1750225844559,-1547.49,0.00023452,6]
[366386309,1750225844568,-1085.18,0.00023452,6]
[366386310,1750225844578,-824.85,0.00023452,6]
[366386311,1750225844587,-1223.73,0.00023452,6]
[366386312,1750225844596,-1185.95,0.00023452,6]
[366386313,1750225844606,-460.0,0.00023452,6]
[366386314,1750225844615,-460.0,0.00023452,6]
[366386315,1750225844624,-561.6,0.00023452,6]
[366386316,1750225844634,-460.0,0.00023452,6]
[366386317,1750225844643,-460.0,0.00023452,6]
[366386318,1750225844652,-748.09,0.00023452,6]
[366386319,1750225844663,-460.0,0.00023452,6]
[366386320,1750225844672,-824.29,0.00023452,6]
[366386321,1750225844681,-513.52,0.00023452,6]
[366386322,1750225844690,-460.0,0.00023452,6]
[366386323,1750225844700,-460.0,0.00023452,6]
[366386324,1750225844712,-460.0,0.00023452,6]
[366386325,1750225844722,-3347.96,0.00023452,6]
[366386326,1750225844731,-1223.32,0.00023452,6]
[366386327,1750225844741,-499.35,0.00023452,6]
[366386328,1750225844750,-460.0,0.00023452,6]
[366386329,1750225844761,-488.28,0.00023496,3]
[366386330,1750225844770,-322.80377509,0.00023499,2]
[366386331,1750225844779,-500.0,0.00023521,2]
[366386332,1750225844790,-501.34872277,0.00023521,2]
[366386333,1750225844799,-503.18634917,0.00023521,2]
[366386334,1750225844809,-500.0,0.00023521,2]
[366386335,1750225844818,-153.0,0.00023534,2]
[366386336,1750225844827,-590.7819618,0.00023534,2]
[366386337,1750225844837,-153.0,0.00023534,2]
[366386338,1750225844847,-153.0,0.00023534,2]
[366386339,1750225844856,-153.0,0.00023534,2]
[366386340,1750225844866,-153.0,0.00023534,2]
[366386341,1750225844875,-1547.49,0.00023561,6]
[366386342,1750225844884,-1085.18,0.00023561,6]
[366386343,1750225844895,-824.85,0.00023561,6]
[366386344,1750225844905,-1223.73,0.00023561,6]
[366386345,1750225844914,-1185.95,0.00023561,6]
[366386346,1750225844924,-460.0,0.00023561,6]
[366386347,1750225844934,-460.0,0.00023561,6]
[366386348,1750225844943,-561.6,0.00023561,6]
[366386349,1750225844953,-460.0,0.00023561,6]
[366386350,1750225844963,-460.0,0.00023561,6]
[366386351,1750225844972,-748.09,0.00023561,6]
[366386352,1750225844982,-460.0,0.00023561,6]
[366386353,1750225844992,-824.29,0.00023561,6]
[366386354,1750225845001,-513.52,0.00023561,6]
[366386355,1750225845011,-273.30733765,0.00023561,6]
[366386356,1750225845020,-460.0,0.00023561,6]
[366386357,1750225845030,-460.0,0.00023561,6]
[366386358,1750225845039,-3347.96,0.00023561,6]
[366386359,1750225845048,-1223.32,0.00023561,6]
[366386360,1750225845058,-499.35,0.00023561,6]
[366386361,1750225845067,-460.0,0.00023561,6]
[366386362,1750225845077,-177.1504183,0.00023562,2]
[366386363,1750225845086,-158.9908236,0.00023562,2]
[366386364,1750225845096,-574.2153043,0.00023562,2]
[366386365,1750225845105,-306.0,0.00023562,2]
[366386366,1750225845114,-158.9908236,0.00023562,2]
[366386367,1750225845124,-177.1504183,0.00023562,2]
[366386368,1750225845133,-574.2153043,0.00023562,2]
[366386369,1750225845142,-177.1504183,0.00023562,2]
[366386370,1750225845152,-574.2153043,0.00023562,2]
[366386371,1750225845161,-158.9908236,0.00023562,2]
[366386372,1750225845171,-5000.0,0.00023563,2]
[366386373,1750225845180,-519.78071798,0.00023568,2]
[366386374,1750225845189,-1500.0,0.00023568,2]
[366386375,1750225845199,-1547.49,0.00023671,6]
[366386376,1750225845209,-1085.18,0.00023671,6]
[366386377,1750225845218,-824.85,0.00023671,6]
[366386378,1750225845228,-1223.73,0.00023671,6]
[366386379,1750225845238,-1185.95,0.00023671,6]
[366386380,1750225845248,-460.0,0.00023671,6]
[366386381,1750225845257,-297.8225951,0.00023671,6]
[366386382,1750225845267,-561.6,0.00023671,6]
[366386383,1750225845276,-460.0,0.00023671,6]
[366386384,1750225845286,-460.0,0.00023671,6]
[366386385,1750225845295,-748.09,0.00023671,6]
[366386386,1750225845304,-460.0,0.00023671,6]
[366386387,1750225845314,-824.29,0.00023671,6]
[366386388,1750225845323,-513.52,0.00023671,6]
[366386389,1750225845332,-460.0,0.00023671,6]
[366386390,1750225845342,-460.0,0.00023671,6]
[366386391,1750225845351,-3347.96,0.00023671,6]
[366386392,1750225845360,-1223.32,0.00023671,6]
[366386393,1750225845370,-499.35,0.00023671,6]
[366386394,1750225845379,-460.0,0.00023671,6]
[366386395,1750225845389,-500.0,0.00023673,2]
[366386396,1750225845399,-500.0,0.00023673,2]
[366386397,1750225845408,-600.0,0.00023673,2]
[366386398,1750225845418,-500.0,0.00023673,2]
[366386399,1750225845428,-500.0,0.00023673,2]
[366386400,1750225845437,-500.0,0.00023673,2]
[366386401,1750225845447,-504.30613051,0.00023673,2]
[366386402,1750225845456,-79138.21,0.000237,7]
[366386403,1750225845466,-2348.37,0.000237,7]
[366386404,1750225845476,-151.0,0.000237,7]
[366386405,1750225845485,-2004.27863476,0.000237,2]
[366386406,1750225845494,-163.536723,0.000237,7]
[366386407,1750225845504,-151.0,0.000237,7]
[366386408,1750225845514,-151.0,0.000237,7]
[366386409,1750225845524,-151.0,0.000237,7]
[366386410,1750225845533,-151.0,0.000237,7]
[366386411,1750225845543,-151.0,0.000237,7]
[366386412,1750225845552,-151.0,0.000237,7]
[366386413,1750225845561,-735.73989638,0.00023702,2]
[366386414,1750225845571,-587.0,0.00023712,2]
[366386415,1750225845580,-587.0,0.00023712,2]
[366386416,1750225845589,-194.21689834,0.00023773,2]
[366386417,1750225845599,-503.72264122,0.00023773,2]
[366386418,1750225845608,-500.0,0.00023773,2]
[366386419,1750225845618,-150.0,0.00023773,2]
[366386420,1750225845627,-175.0,0.00023773,2]
[366386421,1750225845636,-175.0,0.00023773,2]
[366386422,1750225845646,-291.357305,0.00023773,7]
[366386423,1750225845656,-151.0,0.00023773,7]
[366386424,1750225845665,-87084.01023304,0.0002378,15]
[366386426,1750225845824,-5242.44218805,0.0002378,15]
[366386427,1750225845836,-755.8897517,0.0002378,15]
[366386428,1750225845888,-675.73376439,0.00021698,2]
[366386429,1750225845900,-4324.26623561,0.00021698,2]
[366386430,1750225845910,-151.16376439,0.00022794,6]
[366386434,1750225846343,-455.42580867,0.00021917,6]
[366386435,1750225846352,-239.13317568,0.00021917,2]
[366386436,1750225847269,-297.0,0.00022794,6]
[366386437,1750226042552,-202.0,0.00019659,2]
[366386438,1750226094183,-155.0,0.00019659,2]
[366386439,1750226146829,-168.03110711,0.00019617,2]
[366386440,1750226233771,-238.0,0.00018489,2]
[366386441,1750226283235,-151.0,0.00018489,2]
[366386442,1750226337461,400000.0,0.00023,30]
[366386443,1750226376426,300000.0,0.00023,30]
[366386444,1750226380982,-203.0,0.00018489,2]
[366386445,1750226388679,-491.74015941,0.00018489,2]
[366386446,1750226391125,-168.25984059,0.00018489,2]
[366386447,1750226422207,-300.0,0.0001839,2]
[366386448,1750226451191,-185.0,0.0001839,2]
[366386449,1750226483006,168.27817,0.00013699,2]
[366386450,1750226523257,-258.0,0.0001839,2]
[366386451,1750226552324,-182.4150196,0.0001839,2]
[366386452,1750226553884,-428.5849804,0.0001839,2]
[366386453,1750226602063,-545.24,0.0001839,2]
[366386454,1750226603150,-415.0498861,0.0001839,2]
[366386455,1750226610604,5000.0,0.000181,2]
[366386457,1750226629708,-1379.39481181,0.00018489,2]
[366386459,1750226675757,-279.07771885,0.00018489,2]
[366386461,1750226746899,-500.0,0.00018489,2]
[366386462,1750226813179,-758.97,0.00018304,2]
[366386463,1750226818782,-4232.0,0.00018304,2]
[366386464,1750226895188,-9.03,0.00018304,2]
[366386465,1750226895210,-153.49582985,0.00018676,2]
[366386466,1750226895234,-43.0133242,0.00019452,2]
[366386467,1750226972516,-183.66,0.00019257,2]
[366386494,1750227032361,-4816.34,0.00019257,2]
[366386496,1750227032371,-548.72,0.00019451,2]
[366386498,1750227032382,-491.74015941,0.0001965,2]
[366386499,1750227032391,-160.808104,0.00019898,2]
[366386501,1750227032400,-151.85127678,0.0002,2]
[366386503,1750227032410,-300.0,0.00020346,2]
[366386505,1750227032419,-300.0,0.00020346,2]
[366386507,1750227032429,-569.0,0.00020346,2]
[366386509,1750227032438,-300.0,0.00020346,2]
[366386511,1750227032448,-300.0,0.00020346,2]
[366386512,1750227032457,-13778.5609964,0.00020347,2]
[366386514,1750227032466,-290.7479792,0.00020586,2]
[366386515,1750227032476,-2267.61788847,0.00020586,2]
[366386517,1750227032485,-215.29851487,0.000209,2]
[366386519,1750227032495,-661.91020855,0.000209,4]
[366386520,1750227032504,-160.0,0.00021,2]
[366386521,1750227032513,-661.91020841,0.00021072,4]
[366386522,1750227032522,-1097.44,0.00021219,2]
[366386523,1750227032532,-661.91020841,0.00021245,4]
[366386524,1750227032541,-661.91020841,0.00021417,5]
[366386525,1750227032550,-661.91020841,0.0002159,5]
[366386526,1750227032560,-661.91020841,0.00021762,5]
[366386527,1750227032570,-483.97084364,0.00021816,2]
[366386528,1750227032580,-178.739,0.00021817,2]
[366386529,1750227032589,-259.092,0.00021817,2]
[366386530,1750227032598,-488.28,0.00021907,3]
[366386531,1750227032608,-500.0,0.00021916,2]
[366386532,1750227032617,-500.0,0.00021916,2]
[366386533,1750227032627,-500.0,0.00021916,2]
[366386534,1750227032636,-304.36661019,0.00021916,2]
[366386535,1750227032645,-500.0,0.00021916,2]
[366386536,1750227032655,-500.0,0.00021916,2]
[366386537,1750227032665,-500.0,0.00021916,2]
[366386538,1750227032674,-306.18639153,0.00021916,2]
[366386539,1750227032683,-500.0,0.00021916,2]
[366386540,1750227032693,-500.0,0.00021916,2]
[366386541,1750227032702,-500.0,0.00021916,2]
[366386542,1750227032711,-500.0,0.00021916,2]
[366386543,1750227032721,-160.0,0.00021916,2]
[366386544,1750227032730,-500.0,0.00021917,2]
[366386545,1750227032739,-201.28796667,0.00021917,6]
[366386546,1750227032749,-432.04782477,0.00021917,6]
[366386547,1750227032759,-415.5630196,0.00021917,6]
[366386548,1750227032769,-460.0,0.00021917,6]
[366386549,1750227032780,-460.0,0.00021917,6]
[366386550,1750227032790,-246.333005,0.00021917,6]
[366386551,1750227032799,-454.72463154,0.00021917,6]
[366386552,1750227032808,-460.0,0.00021917,6]
[366386553,1750227032817,-218.68762327,0.00021917,6]
[366386554,1750227032828,-460.0,0.00021917,6]
[366386555,1750227032838,-447.55323,0.00021917,6]
[366386556,1750227032847,-458.00821986,0.00021917,6]
[366386557,1750227032856,-327.32368824,0.00021917,6]
[366386558,1750227032873,-124.12522159,0.00021917,6]
[366386559,1750227032882,-460.0,0.00021917,6]
[366386560,1750227032892,-460.0,0.00021917,6]
[366386561,1750227032902,-460.0,0.00021917,6]
[366386562,1750227032915,-430.0,0.00021917,6]
[366386563,1750227032924,-446.54532383,0.00021917,6]
[366386564,1750227032933,-460.0,0.00021917,6]
[366386565,1750227032943,-460.0,0.00021917,6]
[366386566,1750227032952,-430.0,0.00021917,6]
[366386567,1750227032962,-460.0,0.00021917,6]
[366386568,1750227032971,-466.57281657,0.00021917,6]
[366386569,1750227032980,-186.73654049,0.00021917,6]
[366386570,1750227032996,-143.2926664,0.00021917,6]
[366386571,1750227033006,-176.61821101,0.00021917,6]
[366386572,1750227033016,-462.46120439,0.00021917,6]
[366386573,1750227033025,-500.0,0.00021917,6]
[366386574,1750227033035,-316.0462539,0.00021917,6]
[366386575,1750227033044,-460.72605634,0.00021917,6]
[366386576,1750227033054,-430.0,0.00021917,6]
[366386577,1750227033064,-460.0,0.00021917,6]
[366386578,1750227033073,-444.32006626,0.00021917,6]
[366386579,1750227033083,-460.0,0.00021917,6]
[366386580,1750227033093,-427.39492415,0.00021917,6]
[366386581,1750227033102,-449.83451187,0.00021917,6]
[366386582,1750227033112,-364.55914982,0.00021917,6]
[366386583,1750227033121,-301.81795479,0.00021917,6]
[366386584,1750227033131,-415.77934197,0.00021917,6]
[366386585,1750227033140,-354.38095449,0.00021917,6]
[366386586,1750227033150,-429.96511487,0.00021917,6]
[366386587,1750227033160,-399.83805325,0.00021917,6]
[366386588,1750227033170,-440.0,0.00021917,6]
[366386589,1750227033179,-485.01409408,0.00021917,6]
[366386590,1750227033188,-440.0,0.00021917,6]
[366386591,1750227033199,-461.14280919,0.00021917,6]
[366386592,1750227033208,-460.0,0.00021917,2]
[366386593,1750227033217,-440.0,0.00021917,6]
[366386594,1750227033226,-484.69583888,0.00021917,6]
[366386595,1750227033236,-460.0,0.00021917,6]
[366386596,1750227033245,-449.9186192,0.00021917,6]
[366386597,1750227033255,-440.0,0.00021917,6]
[366386598,1750227033264,-380.7538194,0.00021917,6]
[366386599,1750227033273,-454.71875793,0.00021917,6]
[366386600,1750227033283,-453.57373741,0.00021917,6]
[366386601,1750227033292,-440.0,0.00021917,6]
[366386602,1750227033307,-440.0,0.00021917,6]
[366386603,1750227033316,-306.94583827,0.00021917,6]
[366386604,1750227033325,-440.0,0.00021917,6]
[366386605,1750227033339,-277.51774492,0.00021917,6]
[366386606,1750227033353,-440.0,0.00021917,6]
[366386607,1750227033363,-487.860541,0.00021917,6]
[366386608,1750227033373,-460.0,0.00021917,6]
[366386609,1750227033382,-249.67172533,0.00021917,6]
[366386610,1750227033392,-455.33585012,0.00021917,6]
[366386611,1750227033401,-460.0,0.00021917,6]
[366386612,1750227033411,-463.88375104,0.00021917,6]
[366386613,1750227033421,-440.0,0.00021917,6]
[366386614,1750227033430,-239.44871269,0.00021917,6]
[366386615,1750227033439,-460.0,0.00021917,6]
[366386616,1750227033449,-446.73865991,0.00021917,6]
[366386617,1750227033459,-440.0,0.00021917,6]
[366386618,1750227033468,-440.0,0.00021917,6]
[366386619,1750227033477,-508.26280494,0.00021917,6]
[366386620,1750227033487,-440.0,0.00021917,6]
[366386621,1750227033496,-440.0,0.00021917,6]
[366386622,1750227033507,-446.18705964,0.00021917,6]
[366386623,1750227033516,-447.31023836,0.00021917,6]
[366386624,1750227033526,-281.29680164,0.00021917,6]
[366386625,1750227033536,-465.28272682,0.00021917,6]
[366386626,1750227033545,-440.0,0.00021917,6]
[366386627,1750227033555,-440.0,0.00021917,6]
[366386628,1750227033564,-485.63945205,0.00021917,6]
[366386629,1750227033574,-447.72060391,0.00021917,6]
[366386630,1750227033584,-440.0,0.00021917,6]
[366386631,1750227033593,-440.0,0.00021917,6]
[366386632,1750227033604,-475.30548369,0.00021917,6]
[366386633,1750227033615,-430.0,0.00021917,6]
[366386634,1750227033624,-553.42206027,0.00021917,6]
[366386635,1750227033634,-440.0,0.00021917,6]
[366386636,1750227033767,-469.42084867,0.00021917,6]
[366386637,1750227033777,-440.0,0.00021917,6]
[366386638,1750227033787,-440.0,0.00021917,6]
[366386639,1750227033797,-582.20992685,0.00021917,6]
[366386640,1750227033807,-583.61751202,0.00021917,6]
[366386641,1750227033817,-460.0,0.00021917,6]
[366386642,1750227033827,-250.78328655,0.00021917,6]
[366386643,1750227033836,-440.0,0.00021917,6]
[366386644,1750227033846,-440.0,0.00021917,6]
[366386645,1750227033855,-460.0,0.00021917,6]
[366386646,1750227033865,-458.4509994,0.00021917,6]
[366386647,1750227033874,-440.0,0.00021917,6]
[366386648,1750227033884,-443.59655169,0.00021917,6]
[366386649,1750227033893,-472.00099326,0.00021917,6]
[366386650,1750227033903,-351.87177144,0.00021917,6]
[366386651,1750227033912,-460.0,0.00021917,6]
[366386652,1750227033921,-430.0,0.00021917,6]
[366386653,1750227033931,-451.49598439,0.00021917,6]
[366386654,1750227033940,-440.0,0.00021917,6]
[366386655,1750227033950,-440.0,0.00021917,6]
[366386656,1750227033959,-486.25062394,0.00021917,6]
[366386657,1750227033969,-440.0,0.00021917,6]
[366386658,1750227033979,-440.0,0.00021917,6]
[366386659,1750227033988,-336.72010394,0.00021917,6]
[366386660,1750227033998,-440.0,0.00021917,6]
[366386661,1750227034008,-440.0,0.00021917,6]
[366386662,1750227034018,-440.0,0.00021917,6]
[366386663,1750227034027,-530.62294487,0.00021917,6]
[366386664,1750227034037,-430.9,0.00021917,6]
[366386665,1750227034047,-460.0,0.00021917,6]
[366386666,1750227034056,-464.70102688,0.00021917,6]
[366386667,1750227034066,-460.0,0.00021917,6]
[366386668,1750227034076,-420.0,0.00021917,6]
[366386669,1750227034085,-460.0,0.00021917,6]
[366386670,1750227034095,-451.48076517,0.00021917,6]
[366386671,1750227034104,-307.69259463,0.00021917,6]
[366386672,1750227034114,-460.0,0.00021917,6]
[366386673,1750227034123,-430.0,0.00021917,6]
[366386674,1750227034133,-460.0,0.00021917,6]
[366386675,1750227034143,-160.46567317,0.00021917,6]
[366386676,1750227034152,-409.50598264,0.00021917,6]
[366386677,1750227034162,-440.0,0.00021917,6]
[366386678,1750227034171,-500.0,0.00021917,2]
[366386679,1750227034180,-430.0,0.00021917,6]
[366386680,1750227034190,-164.94476446,0.00021917,6]
[366386681,1750227034199,-440.0,0.00021917,6]
[366386682,1750227034209,-424.31628445,0.00021917,6]
[366386683,1750227034219,-460.0,0.00021917,6]
[366386684,1750227034228,-500.37940642,0.00021917,6]
[366386685,1750227034238,-439.46211676,0.00021917,6]
[366386686,1750227034247,-405.43449075,0.00021917,6]
[366386687,1750227034257,-447.38050556,0.00021917,6]
[366386688,1750227034267,-440.0,0.00021917,6]
[366386689,1750227034277,-478.46555076,0.00021917,6]
[366386690,1750227034287,-475.47623179,0.00021917,6]
[366386691,1750227034297,-231.91853613,0.00021917,6]
[366386692,1750227034306,-477.76067303,0.00021917,6]
[366386693,1750227034316,-480.96493445,0.00021917,6]
[366386694,1750227034326,-440.0,0.00021917,6]
[366386695,1750227034340,-476.82779773,0.00021917,6]
[366386696,1750227034350,-370.17924767,0.00021917,6]
[366386697,1750227034360,-584.01128078,0.00021917,6]
[366386698,1750227034370,-436.21498281,0.00021917,6]
[366386699,1750227034381,-446.27278381,0.00021917,6]
[366386700,1750227034391,-459.78178476,0.00021917,6]
[366386701,1750227034401,-440.0,0.00021917,6]
[366386702,1750227034412,-439.79299069,0.00021917,6]
[366386703,1750227034422,-445.57137237,0.00021917,6]
[366386704,1750227034431,-440.0,0.00021917,6]
[366386705,1750227034441,-440.0,0.00021917,6]
[366386706,1750227034451,-444.52655013,0.00021917,6]
[366386707,1750227034460,-460.0,0.00021917,6]
[366386708,1750227034469,-418.05180835,0.00021917,6]
[366386709,1750227034479,-438.59038416,0.00021917,6]
[366386710,1750227034489,-440.0,0.00021917,6]
[366386711,1750227034498,-354.41202606,0.00021917,6]
[366386712,1750227034508,-456.03039921,0.00021917,6]
[366386713,1750227034520,-455.07831358,0.00021917,6]
[366386714,1750227034529,-446.70061062,0.00021917,6]
[366386715,1750227034539,-643.14,0.00021917,6]
[366386716,1750227034548,-440.0,0.00021917,6]
[366386717,1750227034558,-489.61131536,0.00021917,6]
[366386718,1750227034568,-420.0,0.00021917,6]
[366386719,1750227034577,-442.20894272,0.00021917,6]
[366386720,1750227034587,-460.0,0.00021917,6]
[366386721,1750227034596,-412.51106074,0.00021917,6]
[366386722,1750227034607,-441.49459922,0.00021917,6]
[366386723,1750227034616,-259.40750686,0.00021917,6]
[366386724,1750227034626,-440.0,0.00021917,6]
[366386725,1750227034636,-435.47436581,0.00021917,6]
[366386726,1750227034646,-460.0,0.00021917,6]
[366386727,1750227034656,-392.68720501,0.00021917,6]
[366386728,1750227034666,-430.0,0.00021917,6]
[366386729,1750227034675,-440.0,0.00021917,6]
[366386730,1750227034685,-460.0,0.00021917,6]
[366386731,1750227034695,-439.35935501,0.00021917,6]
[366386732,1750227034705,-447.97283954,0.00021917,6]
[366386733,1750227034715,-460.0,0.00021917,6]
[366386734,1750227034725,-1079.72,0.00021917,6]
[366386735,1750227034734,-1186.66,0.00021917,6]
[366386736,1750227034743,-521.44884869,0.00021917,6]
[366386737,1750227034753,-440.0,0.00021917,6]
[366386738,1750227034764,-474.95688791,0.00021917,6]
[366386739,1750227034774,-430.0,0.00021917,6]
[366386740,1750227034785,-506.40268672,0.00021917,6]
[366386741,1750227034795,-1088.37,0.00021917,6]
[366386742,1750227034805,-442.49764777,0.00021917,6]
[366386743,1750227034815,-447.73745345,0.00021917,6]
[366386744,1750227034825,-460.0,0.00021917,6]
[366386745,1750227034834,-460.0,0.00021917,6]
[366386746,1750227034844,-440.0,0.00021917,6]
[366386747,1750227034854,-460.0,0.00021917,6]
[366386748,1750227034864,-440.0,0.00021917,6]
[366386749,1750227034873,-442.221883,0.00021917,6]
[366386750,1750227034883,-460.0,0.00021917,6]
[366386751,1750227034892,-315.48196529,0.00021917,6]
[366386752,1750227034902,-460.0,0.00021917,6]
[366386753,1750227034911,-447.4980039,0.00021917,6]
[366386754,1750227034921,-440.0,0.00021917,6]
[366386755,1750227034931,-460.0,0.00021917,6]
[366386756,1750227034940,-460.0,0.00021917,6]
[366386757,1750227034950,-457.26565141,0.00021917,6]
[366386758,1750227034960,-395.68178614,0.00021917,6]
[366386759,1750227034970,-428.55267481,0.00021917,6]
[366386760,1750227034980,-440.0,0.00021917,6]
[366386761,1750227034990,-440.0,0.00021917,6]
[366386762,1750227034999,-404.79817595,0.00021917,6]
[366386763,1750227035009,-859.93,0.00021917,6]
[366386764,1750227035019,-460.0,0.00021917,6]
[366386765,1750227035028,-440.0,0.00021917,6]
[366386766,1750227035038,-447.53429348,0.00021917,6]
[366386767,1750227035048,-440.0,0.00021917,6]
[366386768,1750227035057,-430.0,0.00021917,6]
[366386769,1750227035068,-440.0,0.00021917,6]
[366386770,1750227035078,-436.9226561,0.00021917,6]
[366386771,1750227035088,-460.0,0.00021917,6]
[366386772,1750227035097,-462.688423,0.00021917,6]
[366386773,1750227035107,-430.0,0.00021917,6]
[366386774,1750227035116,-403.46835413,0.00021917,6]
[366386775,1750227035126,-442.64852252,0.00021917,6]
[366386776,1750227035136,-460.0,0.00021917,6]
[366386777,1750227035146,-460.0,0.00021917,6]
[366386778,1750227035156,-321.0356507,0.00021917,6]
[366386779,1750227035166,-253.18456085,0.00021917,6]
[366386780,1750227035176,-440.0,0.00021917,6]
[366386781,1750227035186,-460.0,0.00021917,6]
[366386782,1750227035196,-443.0250513,0.00021917,6]
[366386783,1750227035207,-460.0,0.00021917,6]
[366386784,1750227035218,-443.36372963,0.00021917,6]
[366386785,1750227035228,-460.0,0.00021917,6]
[366386786,1750227035238,-434.68825674,0.00021917,6]
[366386787,1750227035248,-440.0,0.00021917,6]
[366386788,1750227035258,-449.89070678,0.00021917,6]
[366386789,1750227035268,-498.41728115,0.00021917,6]
[366386790,1750227035278,-442.8084193,0.00021917,6]
[366386791,1750227035287,-448.59938979,0.00021917,6]
[366386792,1750227035297,-591.66802904,0.00021917,6]
[366386793,1750227035307,-460.0,0.00021917,6]
[366386794,1750227035316,-460.0,0.00021917,6]
[366386795,1750227035326,-530.82,0.00021917,6]
[366386796,1750227035339,-460.0,0.00021917,6]
[366386797,1750227035349,-440.0,0.00021917,6]
[366386798,1750227035359,-460.0,0.00021917,6]
[366386799,1750227035369,-440.0,0.00021917,6]
[366386800,1750227035380,-206.76655566,0.00021917,6]
[366386801,1750227035389,-440.0,0.00021917,6]
[366386802,1750227035399,-460.0,0.00021917,6]
[366386803,1750227035409,-440.0,0.00021917,6]
[366386804,1750227035419,-460.0,0.00021917,6]
[366386805,1750227035429,-452.44817473,0.00021917,2]
[366386806,1750227035439,-441.96489106,0.00021917,6]
[366386807,1750227035448,-439.41544095,0.00021917,6]
[366386808,1750227035458,-586.23171631,0.00021917,6]
[366386809,1750227035467,-440.0,0.00021917,6]
[366386810,1750227035477,-440.0,0.00021917,6]
[366386811,1750227035488,-430.0,0.00021917,6]
[366386812,1750227035498,-460.0,0.00021917,6]
[366386813,1750227035508,-460.0,0.00021917,6]
[366386814,1750227035517,-460.0,0.00021917,6]